[Event "Late-Titled-Tuesday-Blitz-September-05-2023"]
[Site "Chess.com"]
[Date "2023.09.05"]
[Round "9"]
[White "dosto07"]
[Black "realburq"]
[Result "0-1"]
[WhiteElo "2496"]
[BlackElo "2406"]
[TimeControl "180+1"]
[EndTime "15:46:34 PDT"]
[Termination "realburq won on time"]

1. e4 {[%clk 0:02:41.6]} 1... c5 {[%clk 0:02:59.1]} 2. Nf3 {[%clk 0:02:40.5]}
2... Nc6 {[%clk 0:02:58.3]} 3. Bb5 {[%clk 0:02:40.3]} 3... e6 {[%clk 0:02:57.9]}
4. O-O {[%clk 0:02:37.8]} 4... Nge7 {[%clk 0:02:57.3]} 5. Re1 {[%clk 0:02:38.3]}
5... Ng6 {[%clk 0:02:49.9]} 6. c3 {[%clk 0:02:36.7]} 6... Be7 {[%clk 0:02:45.2]}
7. d4 {[%clk 0:02:36]} 7... a6 {[%clk 0:02:27]} 8. Bd3 {[%clk 0:02:30.7]} 8...
cxd4 {[%clk 0:02:21.5]} 9. cxd4 {[%clk 0:02:30.8]} 9... d5 {[%clk 0:02:22.2]}
10. e5 {[%clk 0:02:30.3]} 10... Nh4 {[%clk 0:02:14.4]} 11. Nxh4 {[%clk
0:02:24.2]} 11... Bxh4 {[%clk 0:02:15.3]} 12. Qg4 {[%clk 0:02:19.2]} 12... Kf8
{[%clk 0:01:56]} 13. Nd2 {[%clk 0:01:43.8]} 13... h5 {[%clk 0:01:55.4]} 14. Qf4
{[%clk 0:01:44.1]} 14... Qg5 {[%clk 0:01:50.6]} 15. Qxg5 {[%clk 0:01:43.4]}
15... Bxg5 {[%clk 0:01:51.5]} 16. Nf3 {[%clk 0:01:42.2]} 16... Be7 {[%clk
0:01:46.6]} 17. h4 {[%clk 0:01:37.9]} 17... Bd7 {[%clk 0:01:42.6]} 18. Bg5
{[%clk 0:01:37.4]} 18... Nb4 {[%clk 0:01:37.8]} 19. Red1 {[%clk 0:01:19.2]}
19... Bxg5 {[%clk 0:01:28.1]} 20. Nxg5 {[%clk 0:01:15.8]} 20... Ke7 {[%clk
0:01:26.1]} 21. a3 {[%clk 0:01:12.9]} 21... Nxd3 {[%clk 0:01:25]} 22. Rxd3
{[%clk 0:01:13.4]} 22... f6 {[%clk 0:01:25.1]} 23. Nf3 {[%clk 0:01:07.8]} 23...
Rac8 {[%clk 0:01:19.3]} 24. Re1 {[%clk 0:01:04.8]} 24... Rc2 {[%clk 0:01:15]}
25. b3 {[%clk 0:00:55.5]} 25... Rhc8 {[%clk 0:01:14]} 26. exf6+ {[%clk
0:00:47.5]} 26... gxf6 {[%clk 0:01:12.9]} 27. Nd2 {[%clk 0:00:42.4]} 27... R8c3
{[%clk 0:01:04.8]} 28. Rxc3 {[%clk 0:00:41.9]} 28... Rxc3 {[%clk 0:01:05.7]} 29.
Re3 {[%clk 0:00:35.2]} 29... Rc1+ {[%clk 0:01:04.9]} 30. Kh2 {[%clk 0:00:33.4]}
30... Kd6 {[%clk 0:00:58]} 31. Nf3 {[%clk 0:00:18]} 31... Be8 {[%clk 0:00:49.2]}
32. Kg3 {[%clk 0:00:17.2]} 32... Bg6 {[%clk 0:00:49.6]} 33. Kf4 {[%clk
0:00:12.5]} 33... Be4 {[%clk 0:00:44.7]} 34. Nd2 {[%clk 0:00:10.6]} 34... Rd1
{[%clk 0:00:27.9]} 35. Nxe4+ {[%clk 0:00:09.6]} 35... dxe4 {[%clk 0:00:28.5]}
36. Rxe4 {[%clk 0:00:09.5]} 36... f5 {[%clk 0:00:27.4]} 37. Re3 {[%clk
0:00:09.2]} 37... Rxd4+ {[%clk 0:00:27.6]} 38. Kg5 {[%clk 0:00:09.6]} 38... Rg4+
{[%clk 0:00:27]} 39. Kxh5 {[%clk 0:00:09.6]} 39... Rxg2 {[%clk 0:00:27.6]} 40.
Kh6 {[%clk 0:00:08.6]} 40... Ke7 {[%clk 0:00:27.5]} 41. f3 {[%clk 0:00:07.8]}
41... Kf7 {[%clk 0:00:19.8]} 42. h5 {[%clk 0:00:08]} 42... Rh2 {[%clk
0:00:13.3]} 43. Rc3 {[%clk 0:00:07.8]} 43... Kf6 {[%clk 0:00:12.8]} 44. Rc7
{[%clk 0:00:07.3]} 44... Rh3 {[%clk 0:00:13.3]} 45. f4 {[%clk 0:00:06.6]} 45...
Rh4 {[%clk 0:00:12.4]} 46. Rxb7 {[%clk 0:00:06.1]} 46... Rxf4 {[%clk 0:00:12.4]}
47. Rb6 {[%clk 0:00:06.1]} 47... Rh4 {[%clk 0:00:12.3]} 48. a4 {[%clk
0:00:05.8]} 48... f4 {[%clk 0:00:12.3]} 49. b4 {[%clk 0:00:04.7]} 49... f3
{[%clk 0:00:12.4]} 50. Rc6 {[%clk 0:00:04.7]} 50... f2 {[%clk 0:00:12.2]} 51.
Rc1 {[%clk 0:00:05.3]} 51... e5 {[%clk 0:00:12.6]} 52. b5 {[%clk 0:00:05.1]}
52... axb5 {[%clk 0:00:12.1]} 53. axb5 {[%clk 0:00:05.7]} 53... e4 {[%clk
0:00:10.5]} 54. b6 {[%clk 0:00:04.7]} 54... e3 {[%clk 0:00:10.9]} 55. b7 {[%clk
0:00:05.2]} 55... Rb4 {[%clk 0:00:11.2]} 56. Rc6+ {[%clk 0:00:04.8]} 56... Kf5
{[%clk 0:00:09.8]} 57. Rc5+ {[%clk 0:00:05.2]} 57... Ke6 {[%clk 0:00:10.4]} 58.
Rc4 {[%clk 0:00:05.3]} 58... Rxb7 {[%clk 0:00:09.8]} 59. Re4+ {[%clk 0:00:05.4]}
59... Kd5 {[%clk 0:00:09.5]} 60. Rxe3 {[%clk 0:00:06]} 60... f1=Q {[%clk
0:00:10]} 61. Rg3 {[%clk 0:00:04.9]} 61... Qf4+ {[%clk 0:00:09.6]} 62. Rg5+
{[%clk 0:00:04.7]} 62... Ke4 {[%clk 0:00:08.6]} 63. Kg6 {[%clk 0:00:04.8]} 63...
Rb6+ {[%clk 0:00:06]} 64. Kh7 {[%clk 0:00:04.7]} 64... Qxg5 {[%clk 0:00:06.1]}
65. h6 {[%clk 0:00:05.6]} 65... Rb7+ {[%clk 0:00:06.2]} 0-1

[Event "Late-Titled-Tuesday-Blitz-September-05-2023"]
[Site "Chess.com"]
[Date "2023.09.05"]
[Round "9"]
[White "AlexNovitz"]
[Black "picturesquecheck"]
[Result "0-1"]
[WhiteElo "2214"]
[BlackElo "2300"]
[TimeControl "180+1"]
[EndTime "15:46:35 PDT"]
[Termination "picturesquecheck won by resignation"]

1. e4 {[%clk 0:03:00.9]} 1... c5 {[%clk 0:02:59.2]} 2. Nf3 {[%clk 0:02:42.1]}
2... d6 {[%clk 0:02:57.4]} 3. d4 {[%clk 0:02:41.6]} 3... cxd4 {[%clk 0:02:58.3]}
4. Nxd4 {[%clk 0:02:21.6]} 4... Nf6 {[%clk 0:02:57.5]} 5. Nc3 {[%clk 0:02:21.5]}
5... Nc6 {[%clk 0:02:57.7]} 6. Bg5 {[%clk 0:02:15.9]} 6... e6 {[%clk 0:02:57.7]}
7. Ndb5 {[%clk 0:02:08.9]} 7... a6 {[%clk 0:02:51.3]} 8. Bxf6 {[%clk 0:02:07.3]}
8... gxf6 {[%clk 0:02:51.8]} 9. Nd4 {[%clk 0:02:05]} 9... Bd7 {[%clk 0:02:52.2]}
10. Nxc6 {[%clk 0:02:03.4]} 10... Bxc6 {[%clk 0:02:52.2]} 11. Bd3 {[%clk
0:02:04.2]} 11... Qb6 {[%clk 0:02:51.8]} 12. O-O {[%clk 0:02:02]} 12... Qxb2
{[%clk 0:02:48.7]} 13. Ne2 {[%clk 0:01:59.9]} 13... O-O-O {[%clk 0:02:48.2]} 14.
Rb1 {[%clk 0:01:57.4]} 14... Qxa2 {[%clk 0:02:47.9]} 15. Nd4 {[%clk 0:01:57.9]}
15... Be8 {[%clk 0:02:28.4]} 16. Qf3 {[%clk 0:01:49.6]} 16... Be7 {[%clk
0:02:15.6]} 17. e5 {[%clk 0:01:47.1]} 17... d5 {[%clk 0:02:15.3]} 18. exf6
{[%clk 0:01:46.9]} 18... Bc5 {[%clk 0:02:14.3]} 19. Nb3 {[%clk 0:01:45.4]} 19...
Ba7 {[%clk 0:02:08.5]} 20. Qg3 {[%clk 0:01:33.3]} 20... Qa3 {[%clk 0:02:05.3]}
21. Ra1 {[%clk 0:01:27.2]} 21... Qd6 {[%clk 0:02:04.7]} 22. Qg7 {[%clk
0:01:25.9]} 22... Qf8 {[%clk 0:02:04]} 23. Bxh7 {[%clk 0:01:12.2]} 23... Bc6
{[%clk 0:01:43]} 24. Bd3 {[%clk 0:01:12.6]} 24... Qxg7 {[%clk 0:01:38.1]} 25.
fxg7 {[%clk 0:01:13.5]} 25... Rhg8 {[%clk 0:01:37.2]} 26. Na5 {[%clk 0:01:12.2]}
26... Be8 {[%clk 0:01:27.3]} 27. Rfb1 {[%clk 0:01:12.4]} 27... Rd7 {[%clk
0:01:26.5]} 28. Nxb7 {[%clk 0:01:11.4]} 28... Bd4 {[%clk 0:01:08.5]} 29. Bxa6
{[%clk 0:00:50.7]} 29... Bxa1 {[%clk 0:01:06.3]} 30. Nc5+ {[%clk 0:00:48.2]}
30... Kd8 {[%clk 0:01:04.6]} 31. Nxd7 {[%clk 0:00:38.2]} 31... Kxd7 {[%clk
0:01:04.5]} 32. Rxa1 {[%clk 0:00:34.4]} 32... Ke7 {[%clk 0:00:59.7]} 33. Bd3
{[%clk 0:00:25.1]} 33... Rxg7 {[%clk 0:00:58.2]} 34. f4 {[%clk 0:00:20.5]} 34...
f5 {[%clk 0:00:53.5]} 35. g3 {[%clk 0:00:20.2]} 35... Bh5 {[%clk 0:00:52.8]} 36.
Kf2 {[%clk 0:00:20.3]} 36... Kf6 {[%clk 0:00:52.4]} 37. Ra6 {[%clk 0:00:18]}
37... Rc7 {[%clk 0:00:52.4]} 38. Ra8 {[%clk 0:00:16.1]} 38... Bd1 {[%clk
0:00:51.5]} 39. Ra2 {[%clk 0:00:15.1]} 39... Bh5 {[%clk 0:00:48.7]} 40. Rb2
{[%clk 0:00:15.4]} 40... Bf7 {[%clk 0:00:48.3]} 41. h4 {[%clk 0:00:15.6]} 41...
Be8 {[%clk 0:00:48.3]} 42. Rb6 {[%clk 0:00:13.6]} 42... Ba4 {[%clk 0:00:46]} 43.
Rb2 {[%clk 0:00:13.3]} 43... Rc3 {[%clk 0:00:45.5]} 44. Ke3 {[%clk 0:00:12]}
44... Rc7 {[%clk 0:00:42.1]} 45. Kd2 {[%clk 0:00:11.7]} 45... Rg7 {[%clk
0:00:42]} 46. Rb4 {[%clk 0:00:10.4]} 46... Be8 {[%clk 0:00:41.7]} 47. Rb8 {[%clk
0:00:10.3]} 47... Bf7 {[%clk 0:00:41.2]} 48. h5 {[%clk 0:00:06.5]} 48... Rxg3
{[%clk 0:00:41.2]} 49. h6 {[%clk 0:00:04.3]} 49... Rh3 {[%clk 0:00:41.6]} 50.
Rh8 {[%clk 0:00:03.7]} 50... d4 {[%clk 0:00:39.3]} 51. Ke1 {[%clk 0:00:03.1]}
51... Kg6 {[%clk 0:00:37.5]} 52. Kf2 {[%clk 0:00:03.3]} 52... Rxh6 {[%clk
0:00:36.8]} 53. Rxh6+ {[%clk 0:00:03.6]} 53... Kxh6 {[%clk 0:00:37.2]} 54. Kg3
{[%clk 0:00:04.1]} 54... Kg6 {[%clk 0:00:37.5]} 55. Be2 {[%clk 0:00:03.6]} 55...
Kf6 {[%clk 0:00:37.7]} 56. Bd3 {[%clk 0:00:04]} 56... Be8 {[%clk 0:00:38]} 57.
Kf3 {[%clk 0:00:03.9]} 57... Bc6+ {[%clk 0:00:37.7]} 58. Kg3 {[%clk 0:00:04.5]}
58... e5 {[%clk 0:00:38.1]} 59. fxe5+ {[%clk 0:00:04.6]} 59... Kxe5 {[%clk
0:00:39]} 60. Kf2 {[%clk 0:00:04.7]} 60... Be4 {[%clk 0:00:38.9]} 61. Ke2 {[%clk
0:00:03]} 61... Bxd3+ {[%clk 0:00:34.9]} 62. cxd3 {[%clk 0:00:03.9]} 62... Kf4
{[%clk 0:00:34.8]} 63. Kf2 {[%clk 0:00:04.1]} 63... Kg4 {[%clk 0:00:35]} 64. Kg2
{[%clk 0:00:04.7]} 64... f4 {[%clk 0:00:34.9]} 65. Kf2 {[%clk 0:00:05.2]} 65...
f3 {[%clk 0:00:35.6]} 66. Kf1 {[%clk 0:00:05.2]} 66... Kf4 {[%clk 0:00:36.1]}
67. Kf2 {[%clk 0:00:05.8]} 67... Kg4 {[%clk 0:00:36.6]} 68. Kf1 {[%clk 0:00:06]}
68... Kg3 {[%clk 0:00:37.3]} 69. Kg1 {[%clk 0:00:06.6]} 69... Kg4 {[%clk
0:00:35.1]} 70. Kf2 {[%clk 0:00:06.7]} 70... Kf4 {[%clk 0:00:35.4]} 71. Kf1
{[%clk 0:00:07.1]} 71... Ke3 {[%clk 0:00:36.1]} 72. Ke1 {[%clk 0:00:07.7]} 72...
Kxd3 {[%clk 0:00:36.6]} 73. Kf2 {[%clk 0:00:08.6]} 73... Ke4 {[%clk 0:00:37]}
74. Kf1 {[%clk 0:00:09.1]} 74... d3 {[%clk 0:00:36.3]} 75. Ke1 {[%clk
0:00:09.4]} 75... Ke3 {[%clk 0:00:36.2]} 76. Kf1 {[%clk 0:00:09.1]} 76... f2
{[%clk 0:00:36.3]} 77. Kg2 {[%clk 0:00:08.8]} 77... Ke2 {[%clk 0:00:36.9]} 0-1

[Event "Late-Titled-Tuesday-Blitz-September-05-2023"]
[Site "Chess.com"]
[Date "2023.09.05"]
[Round "9"]
[White "PepeCuenca"]
[Black "KrokerGuy"]
[Result "1-0"]
[WhiteElo "2671"]
[BlackElo "2507"]
[TimeControl "180+1"]
[EndTime "15:46:39 PDT"]
[Termination "PepeCuenca won on time"]

1. c4 {[%clk 0:03:00.9]} 1... e6 {[%clk 0:02:56.1]} 2. Nf3 {[%clk 0:03:00.7]}
2... d5 {[%clk 0:02:56.1]} 3. d4 {[%clk 0:03:01.4]} 3... Nf6 {[%clk 0:02:56.4]}
4. g3 {[%clk 0:03:01.8]} 4... dxc4 {[%clk 0:02:56.1]} 5. Bg2 {[%clk 0:03:01.6]}
5... a6 {[%clk 0:02:56.7]} 6. a4 {[%clk 0:02:51]} 6... Nc6 {[%clk 0:02:53.5]} 7.
e3 {[%clk 0:02:48.9]} 7... Rb8 {[%clk 0:02:50.2]} 8. O-O {[%clk 0:02:36.8]} 8...
Be7 {[%clk 0:02:43]} 9. Nfd2 {[%clk 0:02:36.4]} 9... Na5 {[%clk 0:02:30.9]} 10.
Qc2 {[%clk 0:02:29.4]} 10... O-O {[%clk 0:01:56.9]} 11. Nxc4 {[%clk 0:02:25]}
11... Nxc4 {[%clk 0:01:57.8]} 12. Qxc4 {[%clk 0:02:25.1]} 12... b5 {[%clk
0:01:56.4]} 13. Qc2 {[%clk 0:02:22.3]} 13... Bb7 {[%clk 0:01:54.2]} 14. Bxb7
{[%clk 0:02:13.6]} 14... Rxb7 {[%clk 0:01:55.1]} 15. Nd2 {[%clk 0:02:11.3]}
15... Qd5 {[%clk 0:01:47.1]} 16. axb5 {[%clk 0:02:07.2]} 16... axb5 {[%clk
0:01:43.5]} 17. Nb3 {[%clk 0:02:01.3]} 17... Ne4 {[%clk 0:01:27.3]} 18. f3
{[%clk 0:01:57.9]} 18... Nf6 {[%clk 0:01:06.6]} 19. e4 {[%clk 0:01:55.9]} 19...
Qd7 {[%clk 0:00:55.6]} 20. Be3 {[%clk 0:01:50.8]} 20... Rc8 {[%clk 0:00:42.1]}
21. Rfc1 {[%clk 0:01:47.3]} 21... Ne8 {[%clk 0:00:34.8]} 22. Kg2 {[%clk
0:01:40.6]} 22... Rbb8 {[%clk 0:00:25.7]} 23. Ra7 {[%clk 0:01:37.5]} 23... Ra8
{[%clk 0:00:25.7]} 24. Rca1 {[%clk 0:01:31.8]} 24... Qd8 {[%clk 0:00:23.1]} 25.
Qc6 {[%clk 0:01:25.1]} 25... Rxa7 {[%clk 0:00:22.6]} 26. Rxa7 {[%clk 0:01:26]}
26... Nd6 {[%clk 0:00:23]} 27. Na5 {[%clk 0:01:16.7]} 27... Kf8 {[%clk
0:00:13.4]} 28. b3 {[%clk 0:01:08.2]} 28... h6 {[%clk 0:00:08.2]} 29. Qc2 {[%clk
0:01:04.3]} 29... Qd7 {[%clk 0:00:07.4]} 30. Kf2 {[%clk 0:00:55.7]} 30... Kg8
{[%clk 0:00:06.6]} 31. Nc6 {[%clk 0:00:55.3]} 31... Bf8 {[%clk 0:00:06]} 32. Ne5
{[%clk 0:00:55.6]} 32... Qd8 {[%clk 0:00:06]} 33. Qc6 {[%clk 0:00:54]} 33... f6
{[%clk 0:00:05.4]} 34. Nd3 {[%clk 0:00:52]} 34... Qe8 {[%clk 0:00:03]} 35. Qxe8
{[%clk 0:00:49.1]} 35... Nxe8 {[%clk 0:00:03.9]} 36. e5 {[%clk 0:00:42.7]} 36...
f5 {[%clk 0:00:02.5]} 37. Bd2 {[%clk 0:00:40.8]} 37... Kf7 {[%clk 0:00:01.7]}
38. Bb4 {[%clk 0:00:34.9]} 38... Bxb4 {[%clk 0:00:01.6]} 39. Nxb4 {[%clk
0:00:35.8]} 39... Ke7 {[%clk 0:00:02.3]} 40. Na6 {[%clk 0:00:33.8]} 40... Kd7
{[%clk 0:00:02.2]} 41. Nc5+ {[%clk 0:00:34.2]} 41... Kc6 {[%clk 0:00:02.4]} 42.
Nxe6 {[%clk 0:00:32.2]} 42... Kd5 {[%clk 0:00:02.9]} 43. Nf4+ {[%clk 0:00:16.9]}
43... Kxd4 {[%clk 0:00:03.2]} 44. e6 {[%clk 0:00:17.6]} 44... Ke5 {[%clk
0:00:02.1]} 45. Rb7 {[%clk 0:00:16.2]} 45... g5 {[%clk 0:00:01.9]} 46. Nd3+
{[%clk 0:00:14.4]} 46... Kxe6 {[%clk 0:00:01.8]} 47. Rxb5 {[%clk 0:00:15]} 47...
Nd6 {[%clk 0:00:01.7]} 48. Rc5 {[%clk 0:00:12.4]} 48... Rb8 {[%clk 0:00:02.2]}
49. b4 {[%clk 0:00:11.9]} 49... Rb7 {[%clk 0:00:02]} 50. Ke3 {[%clk 0:00:12.2]}
50... Kf6 {[%clk 0:00:02.1]} 51. g4 {[%clk 0:00:12]} 51... fxg4 {[%clk
0:00:01.6]} 52. fxg4 {[%clk 0:00:12.9]} 52... Ke6 {[%clk 0:00:01.9]} 53. Kd4
{[%clk 0:00:12.8]} 53... Kd7 {[%clk 0:00:02.4]} 54. Ne5+ {[%clk 0:00:12.1]}
54... Ke6 {[%clk 0:00:02.3]} 55. Nd3 {[%clk 0:00:12.5]} 55... Kd7 {[%clk
0:00:02.6]} 56. Re5 {[%clk 0:00:12.2]} 56... Rb5 {[%clk 0:00:02.9]} 57. Rxb5
{[%clk 0:00:11.4]} 57... Nxb5+ {[%clk 0:00:03.8]} 58. Ke5 {[%clk 0:00:12]} 58...
Ke7 {[%clk 0:00:03.4]} 59. Kf5 {[%clk 0:00:12]} 59... Kf7 {[%clk 0:00:03.7]} 60.
Ne5+ {[%clk 0:00:12.7]} 60... Kg7 {[%clk 0:00:04.4]} 61. Nc6 {[%clk 0:00:12.3]}
61... Kf7 {[%clk 0:00:03.8]} 62. Ne5+ {[%clk 0:00:12]} 62... Kg7 {[%clk
0:00:03.4]} 63. h3 {[%clk 0:00:10.9]} 63... Nc3 {[%clk 0:00:01.4]} 64. Nc6
{[%clk 0:00:08.7]} 64... Nd5 {[%clk 0:00:01.4]} 65. Ke4 {[%clk 0:00:04.8]} 65...
Kf7 {[%clk 0:00:01.3]} 66. Kxd5 {[%clk 0:00:04.7]} 1-0

[Event "Late-Titled-Tuesday-Blitz-September-05-2023"]
[Site "Chess.com"]
[Date "2023.09.05"]
[Round "9"]
[White "Dr_crypt"]
[Black "Boorchess"]
[Result "0-1"]
[WhiteElo "2370"]
[BlackElo "2541"]
[TimeControl "180+1"]
[EndTime "15:46:44 PDT"]
[Termination "Boorchess won by checkmate"]

1. d4 {[%clk 0:02:57.9]} 1... Nf6 {[%clk 0:02:59]} 2. Nf3 {[%clk 0:02:57]} 2...
d5 {[%clk 0:02:58.1]} 3. c4 {[%clk 0:02:56.5]} 3... e6 {[%clk 0:02:56.5]} 4. Nc3
{[%clk 0:02:55.9]} 4... a6 {[%clk 0:02:53.5]} 5. Bf4 {[%clk 0:02:50.7]} 5...
dxc4 {[%clk 0:02:49.8]} 6. e4 {[%clk 0:02:49.8]} 6... b5 {[%clk 0:02:47.3]} 7.
Qc2 {[%clk 0:02:49.1]} 7... Nc6 {[%clk 0:02:41.4]} 8. O-O-O {[%clk 0:02:47.9]}
8... Bb7 {[%clk 0:02:31.5]} 9. d5 {[%clk 0:02:43.5]} 9... Nb4 {[%clk 0:02:26.3]}
10. Qe2 {[%clk 0:02:41.2]} 10... exd5 {[%clk 0:02:19.7]} 11. exd5+ {[%clk
0:02:40.1]} 11... Qe7 {[%clk 0:02:11.7]} 12. Bxc7 {[%clk 0:02:34.2]} 12... Qxe2
{[%clk 0:02:09.7]} 13. Bxe2 {[%clk 0:02:33.9]} 13... Nbxd5 {[%clk 0:02:02.3]}
14. Nxd5 {[%clk 0:02:30.9]} 14... Nxd5 {[%clk 0:02:01.8]} 15. Rhe1 {[%clk
0:02:12.8]} 15... Be7 {[%clk 0:01:54.5]} 16. Bd6 {[%clk 0:02:00.6]} 16... O-O-O
{[%clk 0:01:50.2]} 17. Bxe7 {[%clk 0:01:57.1]} 17... Nxe7 {[%clk 0:01:48.6]} 18.
Bxc4 {[%clk 0:01:56.6]} 18... Rxd1+ {[%clk 0:01:46.2]} 19. Kxd1 {[%clk
0:01:56.4]} 19... Bxf3+ {[%clk 0:01:46.1]} 20. gxf3 {[%clk 0:01:56.2]} 20...
Rd8+ {[%clk 0:01:45.7]} 21. Kc2 {[%clk 0:01:53.4]} 21... Nf5 {[%clk 0:01:02.5]}
22. Bxf7 {[%clk 0:01:50.8]} 22... Kc7 {[%clk 0:00:55.9]} 23. Re8 {[%clk
0:01:34.7]} 23... Nd4+ {[%clk 0:00:49.7]} 24. Kc1 {[%clk 0:01:14.5]} 24... Nxf3
{[%clk 0:00:46.9]} 25. Rxd8 {[%clk 0:01:13.4]} 25... Kxd8 {[%clk 0:00:46.3]} 26.
h3 {[%clk 0:01:12.1]} 26... Ng5 {[%clk 0:00:45.2]} 27. Bg8 {[%clk 0:01:07.4]}
27... Nxh3 {[%clk 0:00:43.1]} 28. Bxh7 {[%clk 0:01:07.1]} 28... Nxf2 {[%clk
0:00:43.1]} 29. Kd2 {[%clk 0:01:07.2]} 29... Ng4 {[%clk 0:00:42.2]} 30. Bf5
{[%clk 0:01:02.1]} 30... Ne5 {[%clk 0:00:38.8]} 31. Kc3 {[%clk 0:01:00.3]} 31...
Kc7 {[%clk 0:00:38.9]} 32. Kb4 {[%clk 0:00:59.2]} 32... Kb6 {[%clk 0:00:38.2]}
33. a4 {[%clk 0:00:57.1]} 33... a5+ {[%clk 0:00:37.5]} 34. Kc3 {[%clk
0:00:57.1]} 34... b4+ {[%clk 0:00:36.1]} 35. Kd4 {[%clk 0:00:56.8]} 35... Nc6+
{[%clk 0:00:30.9]} 36. Kc4 {[%clk 0:00:54.9]} 36... Ne7 {[%clk 0:00:29.4]} 37.
Bd7 {[%clk 0:00:50.1]} 37... g5 {[%clk 0:00:26]} 38. b3 {[%clk 0:00:49.5]} 38...
Ng6 {[%clk 0:00:24.8]} 39. Kd4 {[%clk 0:00:48.7]} 39... Kc7 {[%clk 0:00:21]} 40.
Bf5 {[%clk 0:00:45.9]} 40... Ne7 {[%clk 0:00:20.9]} 41. Bg4 {[%clk 0:00:42.2]}
41... Kd6 {[%clk 0:00:20.7]} 42. Kc4 {[%clk 0:00:42.1]} 42... Kc6 {[%clk
0:00:20.2]} 43. Bf3+ {[%clk 0:00:42.2]} 43... Kb6 {[%clk 0:00:20.3]} 44. Bg4
{[%clk 0:00:42.1]} 44... Ng6 {[%clk 0:00:20.3]} 45. Kd5 {[%clk 0:00:41.5]} 45...
Nf4+ {[%clk 0:00:20]} 46. Ke5 {[%clk 0:00:40.3]} 46... Nd3+ {[%clk 0:00:20.4]}
47. Kf6 {[%clk 0:00:37.5]} 47... Nc5 {[%clk 0:00:21.3]} 48. Bd1 {[%clk
0:00:36.2]} 48... Kc6 {[%clk 0:00:21.9]} 49. Kxg5 {[%clk 0:00:35.8]} 49... Kd5
{[%clk 0:00:22.5]} 50. Kf6 {[%clk 0:00:34.8]} 50... Kd4 {[%clk 0:00:22.7]} 51.
Ke7 {[%clk 0:00:34.1]} 51... Kc3 {[%clk 0:00:22.8]} 52. Kd6 {[%clk 0:00:34.1]}
52... Nxb3 {[%clk 0:00:21.8]} 53. Kc6 {[%clk 0:00:34.4]} 53... Nd4+ {[%clk
0:00:19.9]} 54. Kb6 {[%clk 0:00:34]} 54... b3 {[%clk 0:00:20.1]} 55. Bxb3 {[%clk
0:00:25.2]} 55... Nxb3 {[%clk 0:00:20.2]} 56. Kb5 {[%clk 0:00:24.5]} 56... Kb2
{[%clk 0:00:19.6]} 57. Kc4 {[%clk 0:00:22.3]} 57... Ka3 {[%clk 0:00:19.9]} 58.
Kb5 {[%clk 0:00:22.2]} 58... Kb2 {[%clk 0:00:19.6]} 59. Kc4 {[%clk 0:00:21.9]}
59... Ka2 {[%clk 0:00:20.1]} 60. Kc3 {[%clk 0:00:13.8]} 60... Ka3 {[%clk
0:00:20.4]} 61. Kc2 {[%clk 0:00:14.2]} 61... Kxa4 {[%clk 0:00:21]} 62. Kb1
{[%clk 0:00:15.1]} 62... Kb4 {[%clk 0:00:21.5]} 63. Ka2 {[%clk 0:00:15.6]} 63...
a4 {[%clk 0:00:22.2]} 64. Kb1 {[%clk 0:00:15.9]} 64... Ka3 {[%clk 0:00:22.2]}
65. Kc2 {[%clk 0:00:14.3]} 65... Ka2 {[%clk 0:00:22.6]} 66. Kc3 {[%clk 0:00:15]}
66... a3 {[%clk 0:00:23.5]} 67. Kc2 {[%clk 0:00:14.1]} 67... Nc5 {[%clk
0:00:23.6]} 68. Kc1 {[%clk 0:00:14.5]} 68... Kb3 {[%clk 0:00:23.5]} 69. Kb1
{[%clk 0:00:14.7]} 69... Ne4 {[%clk 0:00:23.7]} 70. Ka1 {[%clk 0:00:14.7]} 70...
Nf2 {[%clk 0:00:22.7]} 71. Kb1 {[%clk 0:00:14.9]} 71... Nd1 {[%clk 0:00:21.8]}
72. Ka1 {[%clk 0:00:15]} 72... Nb2 {[%clk 0:00:21.7]} 73. Kb1 {[%clk 0:00:15]}
73... Ka4 {[%clk 0:00:22.2]} 74. Ka2 {[%clk 0:00:15.1]} 74... Nc4 {[%clk
0:00:22.4]} 75. Kb1 {[%clk 0:00:14.6]} 75... Nd6 {[%clk 0:00:23]} 76. Ka2 {[%clk
0:00:14.8]} 76... Nb5 {[%clk 0:00:23.4]} 77. Kb1 {[%clk 0:00:15.6]} 77... Kb3
{[%clk 0:00:23.2]} 78. Ka1 {[%clk 0:00:16.1]} 78... Nd4 {[%clk 0:00:23]} 79. Kb1
{[%clk 0:00:17]} 79... a2+ {[%clk 0:00:23.3]} 80. Kc1 {[%clk 0:00:14.7]} 80...
a1=Q+ {[%clk 0:00:23.1]} 81. Kd2 {[%clk 0:00:15.6]} 81... Qc3+ {[%clk
0:00:23.5]} 82. Kd1 {[%clk 0:00:15.2]} 82... Qc2+ {[%clk 0:00:23.9]} 83. Ke1
{[%clk 0:00:15.4]} 83... Qe2# {[%clk 0:00:24.5]} 0-1